bitfinex/quotes_ETHUSD_20241018
["timestamp","ask_amount","ask_price","bid_price","bid_amount"]
[1729245895307,3.80568,2627.7,2627.5,0.05709351]
[1729245895512,3.8056,2627.7,2627.5,0.05709351]
[1729245896332,4.58075,2627.8,2627.5,0.05709351]
[1729245896519,3.80575,2627.6,2627.5,0.05709351]
[1729245900200,7.53830749,2627.6,2627.5,0.05709351]
[1729245901617,3.80575,2627.6,2627.5,0.05709351]
[1729245906342,3.80633,2627.2,2627.1,1.19434474]
[1729245906551,3.80647,2627.1,2627.0,1.19434474]
[1729245906847,3.80662,2627.0,2626.9,1.19434474]
[1729245908642,3.80662,2627.0,2626.8,1.19434474]
[1729245908952,3.80662,2627.0,2626.9,1.19434474]
[1729245909147,3.80676,2626.9,2626.8,1.19434474]
[1729245909353,3.80676,2626.9,2626.8,1.19616248]
[1729245909512,3.80676,2626.9,2626.7,1.19616248]
[1729245910565,3.80662,2627.0,2626.7,1.19616248]
[1729245910566,3.80691,2626.8,2626.7,1.19616248]
[1729245910728,3.80691,2626.8,2626.6,1.19616248]
[1729245911120,3.80705,2626.7,2626.6,1.19616248]
[1729245911754,3.80691,2626.8,2626.6,1.19616248]
[1729245913522,3.80691,2626.8,2626.5,1.25327827]
[1729245915925,5.4777565,2626.8,2626.5,1.25327827]
[1729245916260,5.4777565,2626.8,2626.5,0.05711579]
[1729245919935,3.80706,2626.7,2626.5,0.05711579]
[1729245921445,1.6708465,2626.8,2626.5,0.05711579]
[1729245921660,5.4778265,2626.8,2626.5,0.05711579]
[1729245924686,3.80698,2626.8,2626.5,0.05711579]
[1729245928295,5.4778265,2626.8,2626.5,0.05711579]
[1729245928505,3.80698,2626.8,2626.5,0.05711579]
[1729245930279,3.80669,2627.0,2626.6,0.8168]
[1729245930476,0.02,2627.6,2626.6,0.8168]
[1729245930477,3.80629,2627.3,2626.8,5.4776265]
[1729245930696,3.80629,2627.3,2627.0,0.7605]
[1729245932166,3.80629,2627.3,2627.1,0.10003848]
[1729245932372,5.4768865,2627.4,2627.1,0.10003848]
[1729245932997,3.80604,2627.4,2627.1,0.10003848]
[1729245933171,3.80605,2627.4,2627.1,0.10003848]
[1729245933367,5.4768365,2627.5,2627.1,0.10003848]
[1729245933809,3.80607,2627.4,2627.1,0.10003848]
[1729245934014,5.4769165,2627.4,2627.1,0.10003848]
[1729245934509,3.80607,2627.4,2627.1,0.10003848]
[1729245934708,5.4769165,2627.4,2627.1,0.10003848]
[1729245935005,3.80599,2627.5,2627.1,0.10003848]
[1729245935166,5.4766365,2627.6,2627.2,0.7914]
[1729245935373,5.4766365,2627.6,2627.3,0.09959068]
[1729245935591,1.6708465,2627.5,2627.2,0.7914]
[1729245935804,1.6708465,2627.5,2627.4,0.09949326]
[1729245935965,1.6708465,2627.5,2627.3,0.09626776]
[1729245936170,1.6708465,2627.5,2627.2,0.7914]
[1729245936517,3.80579,2627.6,2627.3,0.09626921]
[1729245936518,1.6708465,2627.4,2627.3,0.09626921]
[1729245936802,1.6708465,2627.4,2627.1,0.8151]
[1729245937102,3.80619,2627.3,2627.1,0.8151]
[1729245939005,3.80619,2627.3,2627.2,0.09625221]
[1729245940469,6.40534515,2627.3,2627.2,0.09625221]
[1729245940670,7.16054515,2627.3,2627.2,0.09625221]
[1729245940906,7.16054515,2627.3,2626.9,1.19616248]
[1729245940907,3.35435515,2627.3,2626.9,1.19616248]
[1729245941114,5.48970865,2627.3,2627.2,0.09625221]
[1729245941266,3.8065,2627.1,2626.9,1.19616248]
[1729245944370,1.6708465,2627.2,2627.0,1.19616248]
[1729245944589,0.7552,2627.3,2627.0,1.19616248]
[1729245944793,3.80646,2627.2,2627.0,1.19616248]
[1729245945185,7.61292,2627.2,2627.0,1.19616248]
[1729245945505,3.80647,2627.1,2627.0,1.19616248]
[1729245951300,3.80634,2627.2,2627.0,1.19616248]
[1729245953397,3.80625,2627.3,2627.1,0.8013]
[1729245953614,7.61258,2627.3,2627.1,0.8013]
[1729245953786,3.80633,2627.2,2627.1,0.8013]
[1729245954432,3.80647,2627.1,2627.0,1.19616248]
[1729245958724,3.80633,2627.2,2627.0,1.19616248]
[1729245958930,0.7621,2627.5,2627.0,1.19616248]
[1729245958931,4.5681,2627.5,2627.0,1.19616248]
[1729245959158,3.80584,2627.6,2627.2,1.19616248]
[1729245959360,7.61173,2627.6,2627.2,1.19616248]
[1729245959671,3.80582,2627.6,2627.4,1.19616248]
[1729245959825,5.4766665,2627.6,2627.4,1.19616248]
[1729245960025,5.4766665,2627.6,2627.3,1.19616248]
[1729245960265,3.80599,2627.5,2627.3,1.19616248]
[1729245960452,3.80599,2627.5,2627.4,1.19616248]
[1729245960863,3.80599,2627.5,2627.3,1.19616248]
[1729245961467,1.6708465,2627.4,2627.3,1.19616248]
[1729245961670,1.6708465,2627.4,2627.2,1.19616248]
[1729245961884,1.6708465,2627.3,2627.2,1.19616248]
[1729245962051,3.80633,2627.2,2627.1,1.19616248]
[1729245962880,3.80647,2627.1,2627.0,1.19616248]
[1729245963382,3.80671,2627.0,2626.8,1.25399414]
[1729245963538,3.80671,2627.0,2626.9,1.19688908]
[1729245964079,5.4775565,2627.0,2626.9,1.19688908]
[1729245964442,3.80671,2627.0,2626.9,1.19688908]
[1729245964953,5.4774065,2627.1,2626.9,1.19688908]
[1729245965150,3.80656,2627.1,2626.9,1.19688908]
[1729245965368,3.80662,2627.0,2626.9,1.19688908]
[1729245965673,3.80662,2627.0,2626.8,1.65146542]
[1729245965875,3.80662,2627.0,2626.9,1.19700698]
[1729245967932,6.48830315,2627.0,2626.9,1.19700698]
[1729245968210,6.48830315,2627.0,2626.7,1.99508114]
[1729245968211,3.80691,2626.8,2626.7,1.19700698]
[1729245968407,3.80705,2626.7,2626.6,1.19700698]
[1729245968575,5.4778965,2626.7,2626.6,1.19700698]
[1729245968779,5.4778965,2626.7,2626.6,1.28044576]
[1729245969304,3.80691,2626.8,2626.6,1.28044576]
[1729245970340,3.80705,2626.7,2626.6,1.28044576]
[1729245971821,3.80691,2626.8,2626.6,1.28044576]
[1729245972121,7.61394,2626.8,2626.6,1.28044576]
[1729245973823,7.61392,2626.8,2626.6,1.28044576]
[1729245974141,3.80691,2626.8,2626.6,1.28044576]
[1729245974339,3.80705,2626.7,2626.6,1.28044576]
[1729245975822,3.80691,2626.8,2626.6,1.28044576]
[1729245976025,8.36686,2627.1,2626.7,1.19700698]
[1729245976221,5.4774265,2627.1,2626.7,1.19700698]
[1729245976537,3.80658,2627.1,2626.8,1.28029274]
[1729245976938,3.80634,2627.2,2626.8,1.28029274]
[1729245977137,3.80633,2627.2,2626.8,1.28029274]
[1729245977303,3.80649,2627.1,2626.8,1.28029274]
[1729245977640,5.4773365,2627.1,2626.8,1.28029274]
[1729245977941,9.2839165,2627.1,2626.8,1.28029274]
[1729245978139,5.4773365,2627.1,2626.8,1.28029274]
[1729245978646,6.3003065,2626.9,2626.8,1.28029274]
[1729245978808,6.3003065,2626.9,2626.8,0.08328576]
[1729245979142,6.3003065,2626.9,2626.8,1.28029274]
[1729245979299,6.3003065,2626.9,2626.8,1.19700698]
[1729245979697,2.4935465,2626.9,2626.8,0.08336701]
[1729245980023,2.4935465,2626.9,2626.7,1.19700698]
[1729245980024,6.3003065,2626.9,2626.7,1.19700698]
[1729245980231,6.3003065,2626.9,2626.8,0.08336701]
[1729245980436,6.3003065,2626.9,2626.7,1.19700698]
[1729245980637,6.3003065,2626.9,2626.8,0.08336701]
[1729245980838,6.3003065,2626.9,2626.7,1.19700698]
[1729245981026,6.3003065,2626.9,2626.8,0.08336701]
[1729245981538,6.3003065,2626.9,2626.6,1.19700698]
[1729245981751,6.3003065,2626.9,2626.8,0.08336701]
[1729245981920,6.3003065,2626.9,2626.7,0.08188784]
[1729245982246,3.80676,2626.9,2626.8,0.0817909]
[1729245982446,3.80676,2626.9,2626.8,1.27879788]
[1729245982610,3.80676,2626.9,2626.8,1.19700698]
[1729245982807,3.80676,2626.9,2626.8,0.0817909]
[1729245983010,3.80676,2626.9,2626.7,1.19700698]
[1729245983310,3.80676,2626.9,2626.8,0.0817909]
[1729245983710,3.80676,2626.9,2626.7,1.19700698]
[1729245983922,3.80676,2626.9,2626.8,0.0817909]
[1729245984443,3.80676,2626.9,2626.8,0.08062113]
[1729245984651,3.80676,2626.9,2626.7,1.19700698]
[1729245984855,3.80676,2626.9,2626.8,0.08062113]
[1729245985048,5.4776065,2626.9,2626.8,0.08062113]
[1729245985249,2.68084915,2626.9,2626.7,1.19700698]
[1729245985453,6.2432565,2626.8,2626.6,1.19700698]
[1729245985663,3.80705,2626.7,2626.6,1.19700698]
[1729245986309,5.4778965,2626.7,2626.5,1.59436036]
[1729245986509,4.57241,2626.8,2626.4,2.052405]
[1729245986510,6.48307715,2626.6,2626.4,1.25454505]
[1729245986848,6.2436865,2626.5,2626.4,0.05711837]
[1729245987927,4.57284,2626.5,2626.4,0.05711837]
[1729245988128,6.2436865,2626.5,2626.4,0.05711837]
[1729245988316,7.24877515,2626.5,2626.4,0.05711837]
[1729245989448,3.80792,2626.1,2626.0,1.19742668]
[1729245989745,3.80821,2625.9,2625.8,1.19742668]
[1729245989945,3.80821,2625.9,2625.7,1.25455893]
[1729245990327,1.6708465,2626.0,2625.7,1.25455893]
[1729245990649,3.8081,2626.0,2625.7,1.25455893]
[1729245990853,3.80788,2626.2,2625.8,2.4670465]
[1729245991014,5.4784365,2626.4,2625.8,2.4670465]
[1729245991015,3.80759,2626.4,2626.0,1.19742668]
[1729245991356,5.4783565,2626.4,2626.1,0.7962]
[1729245992432,2.4543465,2626.3,2625.9,5.82084668]
[1729245992630,6.2620065,2626.3,2625.9,2.01272668]
[1729245992863,1.6708465,2626.2,2625.9,2.01272668]
[1729245993248,1.6708465,2626.0,2625.9,1.19742668]
[1729245993550,5.4788265,2626.1,2625.8,1.19742668]
[1729245993851,3.80798,2626.1,2625.8,1.19742668]
[1729245994157,3.80778,2626.2,2625.8,1.19742668]
[1729245994953,5.4786265,2626.2,2625.8,1.19742668]
[1729245995656,3.808,2626.1,2625.7,2.06985893]
[1729245995830,3.808,2626.1,2625.7,3.11583344]
[1729245996028,3.80809,2626.0,2625.7,3.11583344]
[1729245996224,5.4786265,2626.2,2625.7,3.11583344]
[1729245996423,5.4786265,2626.2,2625.7,5.70103591]
[1729245996639,5.4786265,2626.2,2625.7,6.89846259]
[1729245997333,3.808,2626.1,2625.7,2.04400808]
[1729245997537,5.4788465,2626.1,2625.7,0.8465814]
[1729245998699,3.80817,2626.0,2625.8,0.07877432]
[1729245998987,5.4787765,2626.1,2625.7,0.8465814]
[1729245999183,5.4787065,2626.2,2625.9,0.07867678]
[1729245999477,5.4787065,2626.2,2626.0,0.07690394]
[1729245999786,3.80793,2626.1,2626.0,0.07690394]
[1729245999964,3.80793,2626.1,2625.7,0.8465814]
[1729246000171,3.80793,2626.1,2626.0,0.07690394]
[1729246000388,3.80793,2626.1,2625.7,0.8465814]
[1729246000555,3.80793,2626.1,2626.0,0.07690394]
[1729246000746,3.80793,2626.1,2625.7,0.8465814]
[1729246000947,3.80793,2626.1,2626.0,0.07690394]
[1729246001272,5.4787765,2626.1,2626.0,0.07617343]
[1729246001795,5.4787765,2626.1,2625.7,0.8465814]
[1729246002007,5.4787765,2626.1,2626.0,0.07617343]
[1729246002175,5.4787765,2626.1,2625.7,0.8465814]
[1729246002374,3.80793,2626.1,2626.0,0.07617343]
[1729246002598,3.80793,2626.1,2625.7,0.8465814]
[1729246002897,3.80793,2626.1,2625.7,1.7659835]
[1729246003191,3.80786,2626.2,2625.8,0.0763685]
[1729246003401,9.2865865,2626.2,2625.8,0.0763685]
[1729246003603,3.80793,2626.1,2625.7,1.7659835]
[1729246003789,3.80793,2626.1,2625.9,0.07627096]
[1729246004095,3.80793,2626.1,2626.0,0.07617343]
[1729246004321,3.80793,2626.1,2625.7,1.7659835]
[1729246004494,3.80793,2626.1,2626.0,0.07617343]
[1729246004694,3.80793,2626.1,2625.7,0.8465814]
[1729246004917,3.80793,2626.1,2626.0,0.07617343]
[1729246005625,3.80793,2626.1,2625.7,0.8465814]
[1729246005806,3.80793,2626.1,2625.8,0.0763685]
[1729246005996,3.80793,2626.1,2625.7,0.8465814]
[1729246006498,3.80793,2626.1,2625.8,0.0763685]
[1729246006700,3.80793,2626.1,2625.7,0.8465814]
[1729246006900,3.80793,2626.1,2625.9,0.07627096]
[1729246007342,3.80793,2626.1,2625.7,0.8465814]
[1729246007491,3.80793,2626.1,2626.0,0.07617343]
[1729246007690,3.80793,2626.1,2625.7,2.04400808]
[1729246007969,3.80793,2626.1,2626.0,0.07617343]
[1729246008227,3.80793,2626.1,2625.7,2.04400808]
[1729246008387,3.80792,2626.1,2626.0,0.07617343]
[1729246008593,3.80792,2626.1,2625.7,2.04400808]
[1729246008789,3.80792,2626.1,2625.8,0.0763685]
[1729246009300,3.80792,2626.1,2625.9,0.07627096]
[1729246009520,3.80792,2626.1,2625.7,2.04400808]
[1729246009718,3.80792,2626.1,2626.0,0.07617343]
[1729246009919,3.80792,2626.1,2625.7,2.04400808]
[1729246010115,5.4786365,2626.2,2626.0,0.07617343]
[1729246010307,3.80792,2626.1,2625.7,2.04400808]
[1729246010596,3.80778,2626.2,2625.8,1.6708465]
[1729246010834,5.4783565,2626.4,2625.8,5.00577668]
[1729246011042,3.80764,2626.3,2625.8,5.00577668]
[1729246011242,3.80764,2626.3,2625.8,5.08193579]
[1729246011406,3.80764,2626.3,2625.9,1.01055005]
[1729246012128,5.4783565,2626.4,2625.9,4.81875005]
[1729246012307,9.2859365,2626.4,2625.9,4.81875005]
[1729246012509,1.6708465,2626.3,2625.9,4.81875005]
[1729246013761,9.2859365,2626.4,2626.0,0.07616563]
[1729246013919,5.4783565,2626.4,2626.1,0.7743]
[1729246014285,5.4783565,2626.4,2626.1,0.8503681]
[1729246014746,3.80751,2626.4,2626.1,0.8503681]
[1729246014945,3.80731,2626.6,2626.1,4.6582781]
[1729246015470,3.80713,2626.7,2626.2,4.35769]
[1729246015616,5.4779765,2626.7,2626.2,4.35769]
[1729246015819,5.4779765,2626.7,2626.2,4.43364238]
[1729246016830,3.80702,2626.8,2626.2,6.10448888]
[1729246017039,3.80702,2626.8,2626.4,0.7801]
[1729246017552,3.80679,2626.9,2626.5,0.07564688]
[1729246018154,4.56597,2627.1,2626.5,1.74649338]
[1729246018453,3.80635,2627.2,2626.7,1.6708465]
[1729246018653,3.80635,2627.2,2626.8,0.83776864]
[1729246019755,5.4771965,2627.2,2626.8,0.83776864]
[1729246019955,1.6708465,2627.1,2626.8,0.83776864]
[1729246020163,3.80663,2627.0,2626.8,0.83776864]
[1729246020347,1.6708465,2627.1,2626.8,0.83776864]
[1729246021022,3.80664,2627.0,2626.8,0.83776864]
[1729246021419,5.4774865,2627.0,2626.8,0.07526864]
[1729246021627,5.4774865,2627.0,2626.7,0.55]
[1729246021829,5.4774865,2627.0,2626.8,0.07499566]
[1729246022048,3.80676,2626.9,2626.8,0.07499566]
[1729246022268,1.6708465,2626.9,2626.6,0.8169]
[1729246022418,5.4776065,2626.9,2626.8,0.07499566]
[1729246022618,3.80643,2627.2,2626.8,0.07499566]
[1729246022926,3.80643,2627.2,2626.9,0.8169]
[1729246023179,3.80643,2627.2,2626.9,0.89180339]
[1729246025560,5.4773565,2627.1,2626.9,0.89180339]
[1729246025731,3.80662,2627.0,2626.9,0.07490339]
[1729246025919,3.80662,2627.0,2626.7,1.74742668]
[1729246026256,3.80662,2627.0,2626.9,0.07486181]
[1729246026463,5.4773265,2627.1,2626.8,0.07495927]
[1729246026625,5.4773265,2627.1,2626.9,0.07486181]
[1729246026874,5.4773265,2627.1,2626.7,0.55]
[1729246027076,5.4773265,2627.1,2626.8,0.07495927]
[1729246027374,3.80648,2627.1,2626.7,1.89437535]
[1729246027573,3.80648,2627.1,2626.9,0.07486181]
[1729246027788,5.4771765,2627.2,2626.8,0.13206804]
[1729246027981,5.4771765,2627.2,2627.0,0.07476435]
[1729246028174,5.4771765,2627.2,2626.8,0.05710877]
[1729246028374,5.4771765,2627.2,2627.1,0.0746669]
[1729246028569,4.56614,2627.4,2626.9,0.795]
[1729246028778,3.8059,2627.5,2627.1,1.7455134]
[1729246029015,3.8059,2627.5,2627.2,0.8286]
[1729246029175,4.60057,2627.8,2627.2,0.90316426]
[1729246029378,4.60057,2627.8,2627.2,4.70946426]
[1729246029379,3.80569,2627.7,2627.2,4.70946426]
[1729246029673,7.4664735,2627.8,2627.2,4.70946426]
[1729246029674,5.4766765,2627.6,2627.2,0.90316426]
[1729246030070,5.4770265,2627.3,2627.2,0.07456426]
[1729246030275,1.6708465,2627.3,2626.8,0.86330877]
[1729246030475,3.80636,2627.2,2626.9,0.07236794]
[1729246030991,1.6708465,2627.3,2626.9,0.07236794]
[1729246030992,3.80619,2627.3,2626.9,0.07236794]
[1729246031927,5.4770365,2627.3,2626.9,0.07236794]
[1729246032431,3.80604,2627.4,2626.9,0.07236794]
[1729246032432,9.2830665,2627.4,2626.9,0.07236794]
[1729246032720,3.80604,2627.4,2626.9,5.54993444]
[1729246032926,3.80604,2627.4,2627.0,0.8062]
[1729246033147,3.80604,2627.4,2627.0,0.87835096]
[1729246034086,4.56956,2627.6,2627.0,4.68496096]
[1729246034290,4.56956,2627.6,2627.2,0.8062]
[1729246034291,3.80586,2627.6,2627.2,0.8062]
[1729246034526,1.6708465,2627.6,2627.2,0.8062]
[1729246034824,5.4767465,2627.5,2627.3,0.07185863]
[1729246035031,1.6708465,2627.5,2627.3,0.07185863]
[1729246035237,1.6708465,2627.5,2627.2,0.8062]
[1729246035536,5.4767465,2627.5,2627.3,0.07185863]
[1729246035739,1.6708465,2627.5,2627.2,0.8062]
[1729246035892,1.6708465,2627.5,2627.4,0.0717612]
[1729246036092,1.6708465,2627.5,2627.2,0.8062]
[1729246036335,1.6708465,2627.5,2627.3,0.07185863]
[1729246036692,1.6708465,2627.5,2627.2,0.8062]
[1729246037032,1.6708465,2627.5,2627.3,0.07185863]
[1729246038096,1.6708465,2627.5,2627.4,0.0717612]
[1729246038303,5.4767365,2627.5,2627.2,0.8062]
[1729246038538,1.6708465,2627.5,2627.4,0.0717612]
[1729246038745,1.6708465,2627.5,2627.3,0.07185863]
[1729246038922,1.6708465,2627.5,2627.4,0.0717612]
[1729246039351,1.6708465,2627.5,2627.2,0.8062]
[1729246039527,1.6708465,2627.5,2627.4,0.0717612]
[1729246039696,1.6708465,2627.5,2627.3,0.07185863]
[1729246039900,1.6708465,2627.5,2627.2,0.8062]
[1729246040143,1.6708465,2627.5,2627.3,0.07185863]
[1729246040531,5.4768265,2627.5,2627.2,0.8062]
[1729246040706,5.4768265,2627.5,2627.4,0.0717612]
[1729246040901,5.4768265,2627.5,2627.3,0.07185863]
[1729246041141,5.4768265,2627.5,2627.4,0.0717612]
[1729246041638,5.4768265,2627.5,2627.2,0.8062]
[1729246041885,6.3097265,2627.5,2627.4,0.0717612]
[1729246042056,2.5037465,2627.6,2627.3,0.07185863]
[1729246042207,5.4767365,2627.5,2627.4,0.0717612]
[1729246042634,5.4765365,2627.7,2627.1,4.43251995]
[1729246042947,4.60226,2628.0,2627.5,6.2677465]
[1729246043105,3.80526,2628.0,2627.5,4.5969]
[1729246043308,5.4759665,2628.1,2627.6,6.17409847]
[1729246043309,3.80512,2628.1,2627.6,6.17409847]
[1729246043525,3.80512,2628.1,2627.6,5.58035182]
[1729246043922,3.95479,2628.2,2627.9,0.8292]
[1729246044125,0.1499,2628.2,2627.9,0.8292]
[1729246044305,0.1499,2628.2,2628.0,0.07107025]
[1729246044505,1.8207465,2628.2,2628.0,0.07107025]
[1729246044706,5.6256365,2628.2,2628.0,0.07107025]
[1729246046676,0.1499,2628.2,2628.0,0.07107025]
[1729246047257,5.6257265,2628.2,2628.0,0.07107025]
[1729246047457,5.4758765,2628.1,2628.0,0.07107025]
[1729246048175,5.6257265,2628.2,2628.0,0.07107025]
[1729246048391,3.95488,2628.2,2628.0,0.07107025]
[1729246048541,0.1499,2628.2,2628.0,0.07107025]
[1729246049257,0.1499,2628.2,2628.1,5.4758765]
[1729246049582,0.1499,2628.2,2628.1,6.3709299]
[1729246050077,0.1499,2628.2,2628.1,0.8950534]
[1729246052756,0.1499,2628.2,2628.1,0.0708534]
[1729246053148,0.1499,2628.2,2627.9,3.86232576]
[1729246053149,0.1499,2628.2,2628.0,0.55]
[1729246053348,0.1499,2628.2,2628.1,0.07078848]
[1729246053857,0.1499,2628.2,2627.9,0.05708576]
[1729246054089,0.1499,2628.2,2628.0,0.07065732]
[1729246057361,5.6256365,2628.2,2628.0,0.07065732]
[1729246057548,0.1499,2628.2,2628.0,0.07065732]
[1729246058460,0.1499,2628.2,2628.1,1.3205]
[1729246058662,0.1499,2628.2,2628.1,1.71057875]
[1729246058858,0.1499,2628.2,2628.1,5.51560875]
[1729246063116,0.1499,2628.2,2628.1,7.26254672]
[1729246063675,0.1499,2628.2,2628.1,8.4599734]
[1729246063977,0.1499,2628.2,2628.1,8.38388193]
[1729246064177,0.1499,2628.2,2628.1,7.18645525]
[1729246064445,0.1499,2628.2,2628.1,8.45420464]
[1729246064578,0.1499,2628.2,2628.1,8.37811648]
[1729246064775,0.1499,2628.2,2628.1,8.78081561]
[1729246064995,0.1499,2628.2,2628.1,7.18645525]
[1729246065209,0.1499,2628.2,2628.1,7.26254138]
[1729246065395,0.1499,2628.2,2628.1,8.4541701]
[1729246065577,0.1499,2628.2,2628.1,8.37808397]
[1729246065777,0.1499,2628.2,2628.1,2.90220747]
[1729246065975,0.1499,2628.2,2628.1,5.51560875]
[1729246066216,0.1499,2628.2,2628.1,7.18645525]
[1729246066692,0.1499,2628.2,2628.1,0.94007875]
[1729246070728,0.1499,2628.2,2628.1,4.74510875]
[1729246071682,0.1499,2628.2,2628.1,0.94007875]
[1729246073047,0.1499,2628.2,2628.1,4.74510875]
[1729246077008,0.1499,2628.2,2628.1,0.94007875]
[1729246079830,0.1499,2628.2,2628.1,1.69627875]
[1729246080388,0.1499,2628.2,2628.1,0.94007875]
[1729246081991,0.1499,2628.2,2628.1,2.13276151]
[1729246082229,0.1499,2628.2,2628.1,5.93779151]
[1729246082727,0.1499,2628.2,2628.1,2.13276151]
[1729246083024,0.1499,2628.2,2628.1,0.94007875]
[1729246083251,0.1499,2628.2,2628.1,2.13276151]
[1729246084134,0.1499,2628.2,2628.1,0.07055995]
[1729246085153,0.1499,2628.2,2628.1,1.26324271]
[1729246087920,0.1499,2628.2,2628.1,1.26683781]
[1729246088116,0.9314,2628.2,2628.1,1.26683781]
[1729246088315,6.4071265,2628.2,2628.1,1.26691065]
[1729246088517,7.04782615,2628.2,2628.1,0.07055995]
[1729246088957,4.57357,2628.0,2627.9,0.05708576]
[1729246089463,6.2444165,2628.0,2627.9,0.05708576]
[1729246089649,7.62842212,2628.0,2627.9,0.05708576]
[1729246089852,5.95757562,2628.0,2627.9,0.05708576]
[1729246090053,7.62842212,2628.0,2627.9,0.05708576]
[1729246099474,0.7684,2628.0,2627.9,0.05708576]
[1729246099680,3.80517,2628.0,2627.9,0.05708576]
[1729246100176,5.4760165,2628.0,2627.9,0.05708576]
[1729246101476,6.2980165,2628.0,2627.9,0.05708576]
[1729246101680,7.968863,2628.0,2627.9,0.05708576]
[1729246101854,7.7754068,2628.0,2627.9,0.05708576]
[1729246102950,9.4462533,2628.0,2627.9,0.05708576]
[1729246105155,3.80618,2627.3,2627.0,1.1963507]
[1729246105354,5.4770265,2627.3,2627.0,1.1963507]
[1729246105684,0.7761,2627.4,2627.0,1.1963507]
[1729246105685,2.4469465,2627.4,2627.1,0.07169473]
[1729246106853,6.2530165,2627.4,2627.1,0.07169473]
[1729246107292,1.6708465,2627.3,2627.1,0.12879741]
[1729246107461,2.4469465,2627.4,2627.1,0.12879741]
[1729246107864,6.2530165,2627.4,2627.1,0.12879741]
[1729246108061,1.6708465,2627.3,2627.1,0.12879741]
[1729246108263,6.2530165,2627.4,2627.1,0.12879741]
[1729246108467,5.4770465,2627.3,2627.1,0.12879741]
[1729246111898,1.6708465,2627.2,2627.1,0.12879741]
[1729246113499,5.4771765,2627.2,2627.1,0.12879741]
[1729246113670,7.25422415,2627.2,2627.1,0.12879741]
[1729246118510,11.92507065,2627.2,2627.1,0.12879741]
[1729246118720,11.94507065,2627.2,2627.1,0.07169473]
[1729246118888,4.57098,2626.7,2626.3,0.7771]
[1729246119208,4.57098,2626.7,2626.4,0.07028997]
[1729246119209,1.6708465,2626.5,2626.4,0.07028997]
[1729246121284,5.4781865,2626.5,2626.4,0.07028997]
[1729246122191,6.2420865,2626.5,2626.4,0.07028997]
[1729246122415,7.23324464,2626.5,2626.4,0.07028997]
[1729246123030,3.80749,2626.4,2626.3,0.05712062]
[1729246123215,5.4783365,2626.4,2626.3,0.05712062]
[1729246123409,5.4783365,2626.4,2626.3,0.12760425]
[1729246123626,5.4783365,2626.4,2626.3,0.05712062]
[1729246123828,5.4783365,2626.4,2626.3,0.12760425]
[1729246133132,3.80749,2626.4,2626.3,0.12760425]
[1729246133439,3.80717,2626.7,2626.3,0.12760425]
[1729246133624,5.4777665,2626.8,2626.4,0.7985]
[1729246133946,1.6708465,2626.7,2626.5,0.07043743]
[1729246134109,1.6708465,2626.8,2626.5,0.07043743]
[1729246134441,3.8062,2627.3,2626.7,3.80696]
[1729246134648,1.6708465,2627.1,2626.8,0.62763065]
[1729246134810,1.6708465,2627.0,2626.8,0.69775484]
[1729246135019,1.6708465,2626.9,2626.8,0.07012419]
[1729246135431,5.4777365,2626.9,2626.4,0.7985]
[1729246135604,1.6708465,2626.5,2626.4,0.7985]
[1729246135804,1.6708465,2626.5,2626.3,0.45065805]
[1729246135805,1.6708465,2626.5,2626.3,0.05712062]
[1729246136106,1.6708465,2626.6,2626.3,0.05712062]
[1729246136900,3.80706,2626.7,2626.3,0.61162413]
[1729246137235,1.6708465,2626.7,2626.3,0.61162413]
[1729246139403,1.6708465,2626.7,2626.4,3.80748]
[1729246139598,1.6708465,2626.7,2626.3,4.41925413]
[1729246140349,1.6708465,2626.6,2626.3,0.61162413]
[1729246140505,1.6708465,2626.5,2626.3,0.05712062]
[1729246140829,5.4781365,2626.6,2626.3,0.05712062]
[1729246141401,3.80706,2626.7,2626.3,0.05712062]
[1729246141609,1.6708465,2626.6,2626.3,0.05712062]
[1729246143452,5.4779065,2626.7,2626.3,0.05712062]
[1729246145116,5.4780665,2626.6,2626.3,0.05712062]
[1729246145454,5.4780465,2626.6,2626.3,0.05712062]
[1729246145672,1.6708465,2626.6,2626.3,0.05712062]
[1729246146161,6.2383065,2626.7,2626.3,0.05712062]
[1729246146363,1.6708465,2626.7,2626.3,3.86463062]
[1729246146547,1.6708465,2626.8,2626.4,3.80747]
[1729246146752,5.4777665,2626.8,2626.4,3.80747]
[1729246147103,5.4777665,2626.8,2626.3,4.71184168]
[1729246147627,5.4777765,2626.8,2626.3,4.71176168]
[1729246147860,3.80663,2627.0,2626.5,3.80732]
[1729246148033,3.80644,2627.2,2626.6,0.7523]
[1729246148034,1.6708465,2626.8,2626.6,0.7523]
[1729246148246,1.6708465,2626.7,2626.4,1.3023]
[1729246148634,5.4778265,2626.8,2626.4,1.3023]
[1729246148844,5.4778265,2626.8,2626.5,0.07027861]
[1729246150129,1.6708465,2626.6,2626.5,0.07027861]
[1729246150329,5.4780465,2626.6,2626.3,0.05712062]
[1729246150631,5.4780465,2626.6,2626.4,0.07037611]
[1729246151259,1.6708465,2626.6,2626.4,0.07037611]
[1729246151786,5.4779065,2626.7,2626.4,0.07037611]
[1729246152448,6.2954565,2626.6,2626.4,0.07037611]
[1729246153290,1.6708465,2626.5,2626.4,0.07037611]
[1729246153771,6.2954565,2626.6,2626.4,0.07037611]
[1729246154137,1.6708465,2626.5,2626.4,0.07037611]
[1729246154448,4.62461,2626.6,2626.4,0.07037611]
[1729246154449,6.2954565,2626.6,2626.4,0.07037611]
[1729246157363,3.80731,2626.6,2626.4,0.07037611]
[1729246159323,3.80731,2626.6,2626.4,1.26672681]
[1729246160468,5.4781565,2626.6,2626.4,1.26672681]
[1729246163564,5.4781565,2626.6,2626.5,1.1963507]
[1729246163769,5.4781565,2626.6,2626.5,1.26662152]
[1729246165107,3.80731,2626.6,2626.5,1.26662152]
[1729246165270,3.80731,2626.6,2626.5,0.07027082]
[1729246166286,5.4781565,2626.6,2626.5,0.07027082]
[1729246171922,3.80731,2626.6,2626.5,1.26662152]
[1729246172214,3.80717,2626.7,2626.5,0.07027082]
[1729246172372,6.2743965,2626.8,2626.5,1.26865961]
[1729246172575,3.80705,2626.7,2626.6,1.19838879]
[1729246172814,0.8183,2627.1,2626.7,0.7526]
[1729246173118,7.61314,2627.1,2626.8,1.19827272]
[1729246173282,5.4774065,2627.1,2626.8,1.26831088]
[1729246174386,5.4774665,2627.0,2626.9,1.19827272]
[1729246174587,3.80676,2626.9,2626.7,2.34284368]
[1729246174787,3.80676,2626.9,2626.8,1.19811079]
[1729246175379,5.4776065,2626.9,2626.8,1.19811079]
[1729246175775,3.80676,2626.9,2626.8,1.19811079]
[1729246175977,5.4774665,2627.0,2626.8,1.19811079]